{"text_format":"1","workbook":"xlsx","n_sheets":4,"sheets":["Di Bruno Order Form","Gift Messages","2018 Gift List","CoGi Offering_2016"],"not_rendered":{"charts":0,"images":1,"macros":1,"external_links":2,"defined_names":12,"comments":0,"pivot_tables":0},"unopened":[],"bounds":{"document_bytes":16777216,"sheet_cells":100000,"rows_first":2000,"rows_last":500,"rows_between":2000,"halvings":0,"cell_chars":16384,"cell_head_chars":4096},"cells_cut":0,"cells_raw":0,"read":"whole","date_system":"1900"}

{"sheet":"Di Bruno Order Form","index":0,"n_rows":452,"n_cols":14,"rows_kept":452,"cut":false,"hidden":false,"merged":[[9,5,9,12],[10,5,10,12],[4,1,4,4],[5,1,5,4],[6,1,6,4],[7,1,7,4],[8,1,8,4],[9,0,10,0],[9,1,10,4],[11,0,11,12],[0,0,0,4],[0,5,0,12],[1,5,1,12],[3,1,3,4],[2,5,2,12],[1,0,1,4],[2,1,2,4],[3,5,3,12],[4,5,4,12],[5,5,5,12],[6,5,6,12],[7,5,7,12],[8,5,8,12]]}
[null,null,null,null,null,"Corporate Gifting Order Form \n215.599.1363 ext. 2         Corporate@dibruno.com "]
["CUSTOMER CONTACT INFORMATION:",null,null,null,null,"Please read the important instructions below. "]
["Company Name*",null,null,null,null,"Your order will be downloaded from this order form electronically, so it is critical that you complete the form following all data entry guidelines to avoid processing errors."]
["Contact Name*",null,null,null,null,"1. Please make sure to fill in the contact and billing information for you and your company. The document will not allow you to save and quit until boxes B3-B9 are completed!"]
["Billing Address:",null,null,null,null,"2. Please make sure the ADDRESS 1 field has numerical values and street addresses.  We are unable to send to PO Boxes at this time. "]
["City, State, Zip:",null,null,null,null,"3. Please include a phone number for the recipient.  If you don't have it, please include your phone number in case of shipping issues. "]
["Phone:",null,null,null,null,"4. Don't forget a gift note message! This is for your gift recipient to know who to thank! "]
["Email Address:",null,null,null,null,"5. Double check all of your addresses and recipient spelling. Additional fees may apply for gifts returned from carrier. "]
["Requested Ship Week:",null,null,null,null,"6. When complete, save this document to your desktop and email it as an attachment to corporate@dibruno.com or your DiBrunos acccount manager."]
["Special Instructions:",null,null,null,null,"7. You will receive a quote within 24 hours to confirm pricing and shipping details. "]
[null,null,null,null,null,"8. An invoice will be generated through PayPal and sent to the email address listed in the contact portion of this document. Payment must be complete for the order to be valid. "]
["ORDER DETAILS:"]
["Recipient Name     (30 Characters Max)","Company Name               (30 Characters Max)","Address 1                       (30 Characters Max)","Address 2","City","State","5 digit Zip Code","Phone Number","Home or Office?","Gift Choice","Gift Price","Choose a Gift Message Here!","Add Your Signature "]
["EXAMPLE: John Doe","Doe Corporations","1234 Blank Road","Suite 567","Blanks","PA",12345,"215-123-4657","Office","Extravaganza- BASK002",299.99,"Congratulations!","From, Your Friends at Google ","Happy Thanksgiving! "]
[null,null,null,null,null,null,null,null,null,null,{"$f":"IFERROR(VLOOKUP(J15,'2018 Gift List'!$A$3:$B$30,2,FALSE),\"\")","v":""},null,null,"Happy Holidays!"]
[null,null,null,null,null,null,null,null,null,null,{"$f":"IFERROR(VLOOKUP(J16,'2018 Gift List'!$A$3:$B$30,2,FALSE),\"\")","v":""},null,null,"Seasons Greetings! "]
[null,null,null,null,null,null,null,null,null,null,{"$f":"IFERROR(VLOOKUP(J17,'2018 Gift List'!$A$3:$B$30,2,FALSE),\"\")","v":""},null,null,"Merry Christmas!"]
[null,null,null,null,null,null,null,null,null,null,{"$f":"IFERROR(VLOOKUP(J18,'2018 Gift List'!$A$3:$B$30,2,FALSE),\"\")","v":""},null,null,"Happy Hanukkah! "]
[null,null,null,null,null,null,null,null,null,null,{"$f":"IFERROR(VLOOKUP(J19,'2018 Gift List'!$A$3:$B$30,2,FALSE),\"\")","v":""},null,null,"Happy New Year! "]
[null,null,null,null,null,null,null,null,null,null,{"$f":"IFERROR(VLOOKUP(J20,'2018 Gift List'!$A$3:$B$30,2,FALSE),\"\")","v":""},null,null,"Handwritten/Provide to Di Bruno Bros."]
[null,null,null,null,null,null,null,null,null,null,{"$f":"IFERROR(VLOOKUP(J21,'2018 Gift List'!$A$3:$B$30,2,FALSE),\"\")","v":""},null,null,"Custom -Contact Gifting Specalist for Details-  Corporate@Dibruno.com"]
[null,null,null,null,null,null,null,null,null,null,{"$f":"IFERROR(VLOOKUP(J22,'2018 Gift List'!$A$3:$B$30,2,FALSE),\"\")","v":""}]
[null,null,null,null,null,null,null,null,null,null,{"$f":"IFERROR(VLOOKUP(J23,'2018 Gift List'!$A$3:$B$30,2,FALSE),\"\")","v":""}]
[null,null,null,null,null,null,null,null,null,null,{"$f":"IFERROR(VLOOKUP(J24,'2018 Gift List'!$A$3:$B$30,2,FALSE),\"\")","v":""}]
[null,null,null,null,null,null,null,null,null,null,{"$f":"IFERROR(VLOOKUP(J25,'2018 Gift List'!$A$3:$B$30,2,FALSE),\"\")","v":""}]
[null,null,null,null,null,null,null,null,null,null,{"$f":"IFERROR(VLOOKUP(J26,'2018 Gift List'!$A$3:$B$30,2,FALSE),\"\")","v":""}]
[null,null,null,null,null,null,null,null,null,null,{"$f":"IFERROR(VLOOKUP(J27,'2018 Gift List'!$A$3:$B$30,2,FALSE),\"\")","v":""}]
[null,null,null,null,null,null,null,null,null,null,{"$f":"IFERROR(VLOOKUP(J28,'2018 Gift List'!$A$3:$B$30,2,FALSE),\"\")","v":""}]
[null,null,null,null,null,null,null,null,null,null,{"$f":"IFERROR(VLOOKUP(J29,'2018 Gift List'!$A$3:$B$30,2,FALSE),\"\")","v":""}]
[null,null,null,null,null,null,null,null,null,null,{"$f":"IFERROR(VLOOKUP(J30,'2018 Gift List'!$A$3:$B$30,2,FALSE),\"\")","v":""}]
[null,null,null,null,null,null,null,null,null,null,{"$f":"IFERROR(VLOOKUP(J31,'2018 Gift List'!$A$3:$B$30,2,FALSE),\"\")","v":""}]
[null,null,null,null,null,null,null,null,null,null,{"$f":"IFERROR(VLOOKUP(J32,'2018 Gift List'!$A$3:$B$30,2,FALSE),\"\")","v":""}]
[null,null,null,null,null,null,null,null,null,null,{"$f":"IFERROR(VLOOKUP(J33,'2018 Gift List'!$A$3:$B$30,2,FALSE),\"\")","v":""}]
[null,null,null,null,null,null,null,null,null,null,{"$f":"IFERROR(VLOOKUP(J34,'2018 Gift List'!$A$3:$B$30,2,FALSE),\"\")","v":""}]
[null,null,null,null,null,null,null,null,null,null,{"$f":"IFERROR(VLOOKUP(J35,'2018 Gift List'!$A$3:$B$30,2,FALSE),\"\")","v":""}]
[null,null,null,null,null,null,null,null,null,null,{"$f":"IFERROR(VLOOKUP(J36,'2018 Gift List'!$A$3:$B$30,2,FALSE),\"\")","v":""}]
[null,null,null,null,null,null,null,null,null,null,{"$f":"IFERROR(VLOOKUP(J37,'2018 Gift List'!$A$3:$B$30,2,FALSE),\"\")","v":""}]
[null,null,null,null,null,null,null,null,null,null,{"$f":"IFERROR(VLOOKUP(J38,'2018 Gift List'!$A$3:$B$30,2,FALSE),\"\")","v":""}]
[null,null,null,null,null,null,null,null,null,null,{"$f":"IFERROR(VLOOKUP(J39,'2018 Gift List'!$A$3:$B$30,2,FALSE),\"\")","v":""}]
[null,null,null,null,null,null,null,null,null,null,{"$f":"IFERROR(VLOOKUP(J40,'2018 Gift List'!$A$3:$B$30,2,FALSE),\"\")","v":""}]
[null,null,null,null,null,null,null,null,null,null,{"$f":"IFERROR(VLOOKUP(J41,'2018 Gift List'!$A$3:$B$30,2,FALSE),\"\")","v":""}]
[null,null,null,null,null,null,null,null,null,null,{"$f":"IFERROR(VLOOKUP(J42,'2018 Gift List'!$A$3:$B$30,2,FALSE),\"\")","v":""}]
[null,null,null,null,null,null,null,null,null,null,{"$f":"IFERROR(VLOOKUP(J43,'2018 Gift List'!$A$3:$B$30,2,FALSE),\"\")","v":""}]
[null,null,null,null,null,null,null,null,null,null,{"$f":"IFERROR(VLOOKUP(J44,'2018 Gift List'!$A$3:$B$30,2,FALSE),\"\")","v":""}]
[null,null,null,null,null,null,null,null,null,null,{"$f":"IFERROR(VLOOKUP(J45,'2018 Gift List'!$A$3:$B$30,2,FALSE),\"\")","v":""}]
[null,null,null,null,null,null,null,null,null,null,{"$f":"IFERROR(VLOOKUP(J46,'2018 Gift List'!$A$3:$B$30,2,FALSE),\"\")","v":""}]
[null,null,null,null,null,null,null,null,null,null,{"$f":"IFERROR(VLOOKUP(J47,'2018 Gift List'!$A$3:$B$30,2,FALSE),\"\")","v":""}]
[null,null,null,null,null,null,null,null,null,null,{"$f":"IFERROR(VLOOKUP(J48,'2018 Gift List'!$A$3:$B$30,2,FALSE),\"\")","v":""}]
[null,null,null,null,null,null,null,null,null,null,{"$f":"IFERROR(VLOOKUP(J49,'2018 Gift List'!$A$3:$B$30,2,FALSE),\"\")","v":""}]
[null,null,null,null,null,null,null,null,null,null,{"$f":"IFERROR(VLOOKUP(J50,'2018 Gift List'!$A$3:$B$30,2,FALSE),\"\")","v":""}]
[null,null,null,null,null,null,null,null,null,null,{"$f":"IFERROR(VLOOKUP(J51,'2018 Gift List'!$A$3:$B$30,2,FALSE),\"\")","v":""}]
[null,null,null,null,null,null,null,null,null,null,{"$f":"IFERROR(VLOOKUP(J52,'2018 Gift List'!$A$3:$B$30,2,FALSE),\"\")","v":""}]
[null,null,null,null,null,null,null,null,null,null,{"$f":"IFERROR(VLOOKUP(J53,'2018 Gift List'!$A$3:$B$30,2,FALSE),\"\")","v":""}]
[null,null,null,null,null,null,null,null,null,null,{"$f":"IFERROR(VLOOKUP(J54,'2018 Gift List'!$A$3:$B$30,2,FALSE),\"\")","v":""}]
[null,null,null,null,null,null,null,null,null,null,{"$f":"IFERROR(VLOOKUP(J55,'2018 Gift List'!$A$3:$B$30,2,FALSE),\"\")","v":""}]
[null,null,null,null,null,null,null,null,null,null,{"$f":"IFERROR(VLOOKUP(J56,'2018 Gift List'!$A$3:$B$30,2,FALSE),\"\")","v":""}]
[null,null,null,null,null,null,null,null,null,null,{"$f":"IFERROR(VLOOKUP(J57,'2018 Gift List'!$A$3:$B$30,2,FALSE),\"\")","v":""}]
[null,null,null,null,null,null,null,null,null,null,{"$f":"IFERROR(VLOOKUP(J58,'2018 Gift List'!$A$3:$B$30,2,FALSE),\"\")","v":""}]
[null,null,null,null,null,null,null,null,null,null,{"$f":"IFERROR(VLOOKUP(J59,'2018 Gift List'!$A$3:$B$30,2,FALSE),\"\")","v":""}]
[null,null,null,null,null,null,null,null,null,null,{"$f":"IFERROR(VLOOKUP(J60,'2018 Gift List'!$A$3:$B$30,2,FALSE),\"\")","v":""}]
[null,null,null,null,null,null,null,null,null,null,{"$f":"IFERROR(VLOOKUP(J61,'2018 Gift List'!$A$3:$B$30,2,FALSE),\"\")","v":""}]
[null,null,null,null,null,null,null,null,null,null,{"$f":"IFERROR(VLOOKUP(J62,'2018 Gift List'!$A$3:$B$30,2,FALSE),\"\")","v":""}]
[null,null,null,null,null,null,null,null,null,null,{"$f":"IFERROR(VLOOKUP(J63,'2018 Gift List'!$A$3:$B$30,2,FALSE),\"\")","v":""}]
[null,null,null,null,null,null,null,null,null,null,{"$f":"IFERROR(VLOOKUP(J64,'2018 Gift List'!$A$3:$B$30,2,FALSE),\"\")","v":""}]
[null,null,null,null,null,null,null,null,null,null,{"$f":"IFERROR(VLOOKUP(J65,'2018 Gift List'!$A$3:$B$30,2,FALSE),\"\")","v":""}]
[null,null,null,null,null,null,null,null,null,null,{"$f":"IFERROR(VLOOKUP(J66,'2018 Gift List'!$A$3:$B$30,2,FALSE),\"\")","v":""}]
[null,null,null,null,null,null,null,null,null,null,{"$f":"IFERROR(VLOOKUP(J67,'2018 Gift List'!$A$3:$B$30,2,FALSE),\"\")","v":""}]
[null,null,null,null,null,null,null,null,null,null,{"$f":"IFERROR(VLOOKUP(J68,'2018 Gift List'!$A$3:$B$30,2,FALSE),\"\")","v":""}]
[null,null,null,null,null,null,null,null,null,null,{"$f":"IFERROR(VLOOKUP(J69,'2018 Gift List'!$A$3:$B$30,2,FALSE),\"\")","v":""}]
[null,null,null,null,null,null,null,null,null,null,{"$f":"IFERROR(VLOOKUP(J70,'2018 Gift List'!$A$3:$B$30,2,FALSE),\"\")","v":""}]
[null,null,null,null,null,null,null,null,null,null,{"$f":"IFERROR(VLOOKUP(J71,'2018 Gift List'!$A$3:$B$30,2,FALSE),\"\")","v":""}]
[null,null,null,null,null,null,null,null,null,null,{"$f":"IFERROR(VLOOKUP(J72,'2018 Gift List'!$A$3:$B$30,2,FALSE),\"\")","v":""}]
[null,null,null,null,null,null,null,null,null,null,{"$f":"IFERROR(VLOOKUP(J73,'2018 Gift List'!$A$3:$B$30,2,FALSE),\"\")","v":""}]
[null,null,null,null,null,null,null,null,null,null,{"$f":"IFERROR(VLOOKUP(J74,'2018 Gift List'!$A$3:$B$30,2,FALSE),\"\")","v":""}]
[null,null,null,null,null,null,null,null,null,null,{"$f":"IFERROR(VLOOKUP(J75,'2018 Gift List'!$A$3:$B$30,2,FALSE),\"\")","v":""}]
[null,null,null,null,null,null,null,null,null,null,{"$f":"IFERROR(VLOOKUP(J76,'2018 Gift List'!$A$3:$B$30,2,FALSE),\"\")","v":""}]
[null,null,null,null,null,null,null,null,null,null,{"$f":"IFERROR(VLOOKUP(J77,'2018 Gift List'!$A$3:$B$30,2,FALSE),\"\")","v":""}]
[null,null,null,null,null,null,null,null,null,null,{"$f":"IFERROR(VLOOKUP(J78,'2018 Gift List'!$A$3:$B$30,2,FALSE),\"\")","v":""}]
[null,null,null,null,null,null,null,null,null,null,{"$f":"IFERROR(VLOOKUP(J79,'2018 Gift List'!$A$3:$B$30,2,FALSE),\"\")","v":""}]
[null,null,null,null,null,null,null,null,null,null,{"$f":"IFERROR(VLOOKUP(J80,'2018 Gift List'!$A$3:$B$30,2,FALSE),\"\")","v":""}]
[null,null,null,null,null,null,null,null,null,null,{"$f":"IFERROR(VLOOKUP(J81,'2018 Gift List'!$A$3:$B$30,2,FALSE),\"\")","v":""}]
[null,null,null,null,null,null,null,null,null,null,{"$f":"IFERROR(VLOOKUP(J82,'2018 Gift List'!$A$3:$B$30,2,FALSE),\"\")","v":""}]
[null,null,null,null,null,null,null,null,null,null,{"$f":"IFERROR(VLOOKUP(J83,'2018 Gift List'!$A$3:$B$30,2,FALSE),\"\")","v":""}]
[null,null,null,null,null,null,null,null,null,null,{"$f":"IFERROR(VLOOKUP(J84,'2018 Gift List'!$A$3:$B$30,2,FALSE),\"\")","v":""}]
[null,null,null,null,null,null,null,null,null,null,{"$f":"IFERROR(VLOOKUP(J85,'2018 Gift List'!$A$3:$B$30,2,FALSE),\"\")","v":""}]
[null,null,null,null,null,null,null,null,null,null,{"$f":"IFERROR(VLOOKUP(J86,'2018 Gift List'!$A$3:$B$30,2,FALSE),\"\")","v":""}]
[null,null,null,null,null,null,null,null,null,null,{"$f":"IFERROR(VLOOKUP(J87,'2018 Gift List'!$A$3:$B$30,2,FALSE),\"\")","v":""}]
[null,null,null,null,null,null,null,null,null,null,{"$f":"IFERROR(VLOOKUP(J88,'2018 Gift List'!$A$3:$B$30,2,FALSE),\"\")","v":""}]
[null,null,null,null,null,null,null,null,null,null,{"$f":"IFERROR(VLOOKUP(J89,'2018 Gift List'!$A$3:$B$30,2,FALSE),\"\")","v":""}]
[null,null,null,null,null,null,null,null,null,null,{"$f":"IFERROR(VLOOKUP(J90,'2018 Gift List'!$A$3:$B$30,2,FALSE),\"\")","v":""}]
[null,null,null,null,null,null,null,null,null,null,{"$f":"IFERROR(VLOOKUP(J91,'2018 Gift List'!$A$3:$B$30,2,FALSE),\"\")","v":""}]
[null,null,null,null,null,null,null,null,null,null,{"$f":"IFERROR(VLOOKUP(J92,'2018 Gift List'!$A$3:$B$30,2,FALSE),\"\")","v":""}]
[null,null,null,null,null,null,null,null,null,null,{"$f":"IFERROR(VLOOKUP(J93,'2018 Gift List'!$A$3:$B$30,2,FALSE),\"\")","v":""}]
[null,null,null,null,null,null,null,null,null,null,{"$f":"IFERROR(VLOOKUP(J94,'2018 Gift List'!$A$3:$B$30,2,FALSE),\"\")","v":""}]
[null,null,null,null,null,null,null,null,null,null,{"$f":"IFERROR(VLOOKUP(J95,'2018 Gift List'!$A$3:$B$30,2,FALSE),\"\")","v":""}]
[null,null,null,null,null,null,null,null,null,null,{"$f":"IFERROR(VLOOKUP(J96,'2018 Gift List'!$A$3:$B$30,2,FALSE),\"\")","v":""}]
[null,null,null,null,null,null,null,null,null,null,{"$f":"IFERROR(VLOOKUP(J97,'2018 Gift List'!$A$3:$B$30,2,FALSE),\"\")","v":""}]
[null,null,null,null,null,null,null,null,null,null,{"$f":"IFERROR(VLOOKUP(J98,'2018 Gift List'!$A$3:$B$30,2,FALSE),\"\")","v":""}]
[null,null,null,null,null,null,null,null,null,null,{"$f":"IFERROR(VLOOKUP(J99,'2018 Gift List'!$A$3:$B$30,2,FALSE),\"\")","v":""}]
[null,null,null,null,null,null,null,null,null,null,{"$f":"IFERROR(VLOOKUP(J100,'2018 Gift List'!$A$3:$B$30,2,FALSE),\"\")","v":""}]
[null,null,null,null,null,null,null,null,null,null,{"$f":"IFERROR(VLOOKUP(J101,'2018 Gift List'!$A$3:$B$30,2,FALSE),\"\")","v":""}]
[null,null,null,null,null,null,null,null,null,null,{"$f":"IFERROR(VLOOKUP(J102,'2018 Gift List'!$A$3:$B$30,2,FALSE),\"\")","v":""}]
[null,null,null,null,null,null,null,null,null,null,{"$f":"IFERROR(VLOOKUP(J103,'2018 Gift List'!$A$3:$B$30,2,FALSE),\"\")","v":""}]
[null,null,null,null,null,null,null,null,null,null,{"$f":"IFERROR(VLOOKUP(J104,'2018 Gift List'!$A$3:$B$30,2,FALSE),\"\")","v":""}]
[null,null,null,null,null,null,null,null,null,null,{"$f":"IFERROR(VLOOKUP(J105,'2018 Gift List'!$A$3:$B$30,2,FALSE),\"\")","v":""}]
[null,null,null,null,null,null,null,null,null,null,{"$f":"IFERROR(VLOOKUP(J106,'2018 Gift List'!$A$3:$B$30,2,FALSE),\"\")","v":""}]
[null,null,null,null,null,null,null,null,null,null,{"$f":"IFERROR(VLOOKUP(J107,'2018 Gift List'!$A$3:$B$30,2,FALSE),\"\")","v":""}]
[null,null,null,null,null,null,null,null,null,null,{"$f":"IFERROR(VLOOKUP(J108,'2018 Gift List'!$A$3:$B$30,2,FALSE),\"\")","v":""}]
[null,null,null,null,null,null,null,null,null,null,{"$f":"IFERROR(VLOOKUP(J109,'2018 Gift List'!$A$3:$B$30,2,FALSE),\"\")","v":""}]
[null,null,null,null,null,null,null,null,null,null,{"$f":"IFERROR(VLOOKUP(J110,'2018 Gift List'!$A$3:$B$30,2,FALSE),\"\")","v":""}]
[null,null,null,null,null,null,null,null,null,null,{"$f":"IFERROR(VLOOKUP(J111,'2018 Gift List'!$A$3:$B$30,2,FALSE),\"\")","v":""}]
[null,null,null,null,null,null,null,null,null,null,{"$f":"IFERROR(VLOOKUP(J112,'2018 Gift List'!$A$3:$B$30,2,FALSE),\"\")","v":""}]
[null,null,null,null,null,null,null,null,null,null,{"$f":"IFERROR(VLOOKUP(J113,'2018 Gift List'!$A$3:$B$30,2,FALSE),\"\")","v":""}]
[null,null,null,null,null,null,null,null,null,null,{"$f":"IFERROR(VLOOKUP(J114,'2018 Gift List'!$A$3:$B$30,2,FALSE),\"\")","v":""}]
[null,null,null,null,null,null,null,null,null,null,{"$f":"IFERROR(VLOOKUP(J115,'2018 Gift List'!$A$3:$B$30,2,FALSE),\"\")","v":""}]
[null,null,null,null,null,null,null,null,null,null,{"$f":"IFERROR(VLOOKUP(J116,'2018 Gift List'!$A$3:$B$30,2,FALSE),\"\")","v":""}]
[null,null,null,null,null,null,null,null,null,null,{"$f":"IFERROR(VLOOKUP(J117,'2018 Gift List'!$A$3:$B$30,2,FALSE),\"\")","v":""}]
[null,null,null,null,null,null,null,null,null,null,{"$f":"IFERROR(VLOOKUP(J118,'2018 Gift List'!$A$3:$B$30,2,FALSE),\"\")","v":""}]
[null,null,null,null,null,null,null,null,null,null,{"$f":"IFERROR(VLOOKUP(J119,'2018 Gift List'!$A$3:$B$30,2,FALSE),\"\")","v":""}]
[null,null,null,null,null,null,null,null,null,null,{"$f":"IFERROR(VLOOKUP(J120,'2018 Gift List'!$A$3:$B$30,2,FALSE),\"\")","v":""}]
[null,null,null,null,null,null,null,null,null,null,{"$f":"IFERROR(VLOOKUP(J121,'2018 Gift List'!$A$3:$B$30,2,FALSE),\"\")","v":""}]
[null,null,null,null,null,null,null,null,null,null,{"$f":"IFERROR(VLOOKUP(J122,'2018 Gift List'!$A$3:$B$30,2,FALSE),\"\")","v":""}]
[null,null,null,null,null,null,null,null,null,null,{"$f":"IFERROR(VLOOKUP(J123,'2018 Gift List'!$A$3:$B$30,2,FALSE),\"\")","v":""}]
[null,null,null,null,null,null,null,null,null,null,{"$f":"IFERROR(VLOOKUP(J124,'2018 Gift List'!$A$3:$B$30,2,FALSE),\"\")","v":""}]
[null,null,null,null,null,null,null,null,null,null,{"$f":"IFERROR(VLOOKUP(J125,'2018 Gift List'!$A$3:$B$30,2,FALSE),\"\")","v":""}]
[null,null,null,null,null,null,null,null,null,null,{"$f":"IFERROR(VLOOKUP(J126,'2018 Gift List'!$A$3:$B$30,2,FALSE),\"\")","v":""}]
[null,null,null,null,null,null,null,null,null,null,{"$f":"IFERROR(VLOOKUP(J127,'2018 Gift List'!$A$3:$B$30,2,FALSE),\"\")","v":""}]
[null,null,null,null,null,null,null,null,null,null,{"$f":"IFERROR(VLOOKUP(J128,'2018 Gift List'!$A$3:$B$30,2,FALSE),\"\")","v":""}]
[null,null,null,null,null,null,null,null,null,null,{"$f":"IFERROR(VLOOKUP(J129,'2018 Gift List'!$A$3:$B$30,2,FALSE),\"\")","v":""}]
[null,null,null,null,null,null,null,null,null,null,{"$f":"IFERROR(VLOOKUP(J130,'2018 Gift List'!$A$3:$B$30,2,FALSE),\"\")","v":""}]
[null,null,null,null,null,null,null,null,null,null,{"$f":"IFERROR(VLOOKUP(J131,'2018 Gift List'!$A$3:$B$30,2,FALSE),\"\")","v":""}]
[null,null,null,null,null,null,null,null,null,null,{"$f":"IFERROR(VLOOKUP(J132,'2018 Gift List'!$A$3:$B$30,2,FALSE),\"\")","v":""}]
[null,null,null,null,null,null,null,null,null,null,{"$f":"IFERROR(VLOOKUP(J133,'2018 Gift List'!$A$3:$B$30,2,FALSE),\"\")","v":""}]
[null,null,null,null,null,null,null,null,null,null,{"$f":"IFERROR(VLOOKUP(J134,'2018 Gift List'!$A$3:$B$30,2,FALSE),\"\")","v":""}]
[null,null,null,null,null,null,null,null,null,null,{"$f":"IFERROR(VLOOKUP(J135,'2018 Gift List'!$A$3:$B$30,2,FALSE),\"\")","v":""}]
[null,null,null,null,null,null,null,null,null,null,{"$f":"IFERROR(VLOOKUP(J136,'2018 Gift List'!$A$3:$B$30,2,FALSE),\"\")","v":""}]
[null,null,null,null,null,null,null,null,null,null,{"$f":"IFERROR(VLOOKUP(J137,'2018 Gift List'!$A$3:$B$30,2,FALSE),\"\")","v":""}]
[null,null,null,null,null,null,null,null,null,null,{"$f":"IFERROR(VLOOKUP(J138,'2018 Gift List'!$A$3:$B$30,2,FALSE),\"\")","v":""}]
[null,null,null,null,null,null,null,null,null,null,{"$f":"IFERROR(VLOOKUP(J139,'2018 Gift List'!$A$3:$B$30,2,FALSE),\"\")","v":""}]
[null,null,null,null,null,null,null,null,null,null,{"$f":"IFERROR(VLOOKUP(J140,'2018 Gift List'!$A$3:$B$30,2,FALSE),\"\")","v":""}]
[null,null,null,null,null,null,null,null,null,null,{"$f":"IFERROR(VLOOKUP(J141,'2018 Gift List'!$A$3:$B$30,2,FALSE),\"\")","v":""}]
[null,null,null,null,null,null,null,null,null,null,{"$f":"IFERROR(VLOOKUP(J142,'2018 Gift List'!$A$3:$B$30,2,FALSE),\"\")","v":""}]
[null,null,null,null,null,null,null,null,null,null,{"$f":"IFERROR(VLOOKUP(J143,'2018 Gift List'!$A$3:$B$30,2,FALSE),\"\")","v":""}]
[null,null,null,null,null,null,null,null,null,null,{"$f":"IFERROR(VLOOKUP(J144,'2018 Gift List'!$A$3:$B$30,2,FALSE),\"\")","v":""}]
[null,null,null,null,null,null,null,null,null,null,{"$f":"IFERROR(VLOOKUP(J145,'2018 Gift List'!$A$3:$B$30,2,FALSE),\"\")","v":""}]
[null,null,null,null,null,null,null,null,null,null,{"$f":"IFERROR(VLOOKUP(J146,'2018 Gift List'!$A$3:$B$30,2,FALSE),\"\")","v":""}]
[null,null,null,null,null,null,null,null,null,null,{"$f":"IFERROR(VLOOKUP(J147,'2018 Gift List'!$A$3:$B$30,2,FALSE),\"\")","v":""}]
[null,null,null,null,null,null,null,null,null,null,{"$f":"IFERROR(VLOOKUP(J148,'2018 Gift List'!$A$3:$B$30,2,FALSE),\"\")","v":""}]
[null,null,null,null,null,null,null,null,null,null,{"$f":"IFERROR(VLOOKUP(J149,'2018 Gift List'!$A$3:$B$30,2,FALSE),\"\")","v":""}]
[null,null,null,null,null,null,null,null,null,null,{"$f":"IFERROR(VLOOKUP(J150,'2018 Gift List'!$A$3:$B$30,2,FALSE),\"\")","v":""}]
[null,null,null,null,null,null,null,null,null,null,{"$f":"IFERROR(VLOOKUP(J151,'2018 Gift List'!$A$3:$B$30,2,FALSE),\"\")","v":""}]
[null,null,null,null,null,null,null,null,null,null,{"$f":"IFERROR(VLOOKUP(J152,'2018 Gift List'!$A$3:$B$30,2,FALSE),\"\")","v":""}]
[null,null,null,null,null,null,null,null,null,null,{"$f":"IFERROR(VLOOKUP(J153,'2018 Gift List'!$A$3:$B$30,2,FALSE),\"\")","v":""}]
[null,null,null,null,null,null,null,null,null,null,{"$f":"IFERROR(VLOOKUP(J154,'2018 Gift List'!$A$3:$B$30,2,FALSE),\"\")","v":""}]
[null,null,null,null,null,null,null,null,null,null,{"$f":"IFERROR(VLOOKUP(J155,'2018 Gift List'!$A$3:$B$30,2,FALSE),\"\")","v":""}]
[null,null,null,null,null,null,null,null,null,null,{"$f":"IFERROR(VLOOKUP(J156,'2018 Gift List'!$A$3:$B$30,2,FALSE),\"\")","v":""}]
[null,null,null,null,null,null,null,null,null,null,{"$f":"IFERROR(VLOOKUP(J157,'2018 Gift List'!$A$3:$B$30,2,FALSE),\"\")","v":""}]
[null,null,null,null,null,null,null,null,null,null,{"$f":"IFERROR(VLOOKUP(J158,'2018 Gift List'!$A$3:$B$30,2,FALSE),\"\")","v":""}]
[null,null,null,null,null,null,null,null,null,null,{"$f":"IFERROR(VLOOKUP(J159,'2018 Gift List'!$A$3:$B$30,2,FALSE),\"\")","v":""}]
[null,null,null,null,null,null,null,null,null,null,{"$f":"IFERROR(VLOOKUP(J160,'2018 Gift List'!$A$3:$B$30,2,FALSE),\"\")","v":""}]
[null,null,null,null,null,null,null,null,null,null,{"$f":"IFERROR(VLOOKUP(J161,'2018 Gift List'!$A$3:$B$30,2,FALSE),\"\")","v":""}]
[null,null,null,null,null,null,null,null,null,null,{"$f":"IFERROR(VLOOKUP(J162,'2018 Gift List'!$A$3:$B$30,2,FALSE),\"\")","v":""}]
[null,null,null,null,null,null,null,null,null,null,{"$f":"IFERROR(VLOOKUP(J163,'2018 Gift List'!$A$3:$B$30,2,FALSE),\"\")","v":""}]
[null,null,null,null,null,null,null,null,null,null,{"$f":"IFERROR(VLOOKUP(J164,'2018 Gift List'!$A$3:$B$30,2,FALSE),\"\")","v":""}]
[null,null,null,null,null,null,null,null,null,null,{"$f":"IFERROR(VLOOKUP(J165,'2018 Gift List'!$A$3:$B$30,2,FALSE),\"\")","v":""}]
[null,null,null,null,null,null,null,null,null,null,{"$f":"IFERROR(VLOOKUP(J166,'2018 Gift List'!$A$3:$B$30,2,FALSE),\"\")","v":""}]
[null,null,null,null,null,null,null,null,null,null,{"$f":"IFERROR(VLOOKUP(J167,'2018 Gift List'!$A$3:$B$30,2,FALSE),\"\")","v":""}]
[null,null,null,null,null,null,null,null,null,null,{"$f":"IFERROR(VLOOKUP(J168,'2018 Gift List'!$A$3:$B$30,2,FALSE),\"\")","v":""}]
[null,null,null,null,null,null,null,null,null,null,{"$f":"IFERROR(VLOOKUP(J169,'2018 Gift List'!$A$3:$B$30,2,FALSE),\"\")","v":""}]
[null,null,null,null,null,null,null,null,null,null,{"$f":"IFERROR(VLOOKUP(J170,'2018 Gift List'!$A$3:$B$30,2,FALSE),\"\")","v":""}]
[null,null,null,null,null,null,null,null,null,null,{"$f":"IFERROR(VLOOKUP(J171,'2018 Gift List'!$A$3:$B$30,2,FALSE),\"\")","v":""}]
[null,null,null,null,null,null,null,null,null,null,{"$f":"IFERROR(VLOOKUP(J172,'2018 Gift List'!$A$3:$B$30,2,FALSE),\"\")","v":""}]
[null,null,null,null,null,null,null,null,null,null,{"$f":"IFERROR(VLOOKUP(J173,'2018 Gift List'!$A$3:$B$30,2,FALSE),\"\")","v":""}]
[null,null,null,null,null,null,null,null,null,null,{"$f":"IFERROR(VLOOKUP(J174,'2018 Gift List'!$A$3:$B$30,2,FALSE),\"\")","v":""}]
[null,null,null,null,null,null,null,null,null,null,{"$f":"IFERROR(VLOOKUP(J175,'2018 Gift List'!$A$3:$B$30,2,FALSE),\"\")","v":""}]
[null,null,null,null,null,null,null,null,null,null,{"$f":"IFERROR(VLOOKUP(J176,'2018 Gift List'!$A$3:$B$30,2,FALSE),\"\")","v":""}]
[null,null,null,null,null,null,null,null,null,null,{"$f":"IFERROR(VLOOKUP(J177,'2018 Gift List'!$A$3:$B$30,2,FALSE),\"\")","v":""}]
[null,null,null,null,null,null,null,null,null,null,{"$f":"IFERROR(VLOOKUP(J178,'2018 Gift List'!$A$3:$B$30,2,FALSE),\"\")","v":""}]
[null,null,null,null,null,null,null,null,null,null,{"$f":"IFERROR(VLOOKUP(J179,'2018 Gift List'!$A$3:$B$30,2,FALSE),\"\")","v":""}]
[null,null,null,null,null,null,null,null,null,null,{"$f":"IFERROR(VLOOKUP(J180,'2018 Gift List'!$A$3:$B$30,2,FALSE),\"\")","v":""}]
[null,null,null,null,null,null,null,null,null,null,{"$f":"IFERROR(VLOOKUP(J181,'2018 Gift List'!$A$3:$B$30,2,FALSE),\"\")","v":""}]
[null,null,null,null,null,null,null,null,null,null,{"$f":"IFERROR(VLOOKUP(J182,'2018 Gift List'!$A$3:$B$30,2,FALSE),\"\")","v":""}]
[null,null,null,null,null,null,null,null,null,null,{"$f":"IFERROR(VLOOKUP(J183,'2018 Gift List'!$A$3:$B$30,2,FALSE),\"\")","v":""}]
[null,null,null,null,null,null,null,null,null,null,{"$f":"IFERROR(VLOOKUP(J184,'2018 Gift List'!$A$3:$B$30,2,FALSE),\"\")","v":""}]
[null,null,null,null,null,null,null,null,null,null,{"$f":"IFERROR(VLOOKUP(J185,'2018 Gift List'!$A$3:$B$30,2,FALSE),\"\")","v":""}]
[null,null,null,null,null,null,null,null,null,null,{"$f":"IFERROR(VLOOKUP(J186,'2018 Gift List'!$A$3:$B$30,2,FALSE),\"\")","v":""}]
[null,null,null,null,null,null,null,null,null,null,{"$f":"IFERROR(VLOOKUP(J187,'2018 Gift List'!$A$3:$B$30,2,FALSE),\"\")","v":""}]
[null,null,null,null,null,null,null,null,null,null,{"$f":"IFERROR(VLOOKUP(J188,'2018 Gift List'!$A$3:$B$30,2,FALSE),\"\")","v":""}]
[null,null,null,null,null,null,null,null,null,null,{"$f":"IFERROR(VLOOKUP(J189,'2018 Gift List'!$A$3:$B$30,2,FALSE),\"\")","v":""}]
[null,null,null,null,null,null,null,null,null,null,{"$f":"IFERROR(VLOOKUP(J190,'2018 Gift List'!$A$3:$B$30,2,FALSE),\"\")","v":""}]
[null,null,null,null,null,null,null,null,null,null,{"$f":"IFERROR(VLOOKUP(J191,'2018 Gift List'!$A$3:$B$30,2,FALSE),\"\")","v":""}]
[null,null,null,null,null,null,null,null,null,null,{"$f":"IFERROR(VLOOKUP(J192,'2018 Gift List'!$A$3:$B$30,2,FALSE),\"\")","v":""}]
[null,null,null,null,null,null,null,null,null,null,{"$f":"IFERROR(VLOOKUP(J193,'2018 Gift List'!$A$3:$B$30,2,FALSE),\"\")","v":""}]
[null,null,null,null,null,null,null,null,null,null,{"$f":"IFERROR(VLOOKUP(J194,'2018 Gift List'!$A$3:$B$30,2,FALSE),\"\")","v":""}]
[null,null,null,null,null,null,null,null,null,null,{"$f":"IFERROR(VLOOKUP(J195,'2018 Gift List'!$A$3:$B$30,2,FALSE),\"\")","v":""}]
[null,null,null,null,null,null,null,null,null,null,{"$f":"IFERROR(VLOOKUP(J196,'2018 Gift List'!$A$3:$B$30,2,FALSE),\"\")","v":""}]
[null,null,null,null,null,null,null,null,null,null,{"$f":"IFERROR(VLOOKUP(J197,'2018 Gift List'!$A$3:$B$30,2,FALSE),\"\")","v":""}]
[null,null,null,null,null,null,null,null,null,null,{"$f":"IFERROR(VLOOKUP(J198,'2018 Gift List'!$A$3:$B$30,2,FALSE),\"\")","v":""}]
[null,null,null,null,null,null,null,null,null,null,{"$f":"IFERROR(VLOOKUP(J199,'2018 Gift List'!$A$3:$B$30,2,FALSE),\"\")","v":""}]
[null,null,null,null,null,null,null,null,null,null,{"$f":"IFERROR(VLOOKUP(J200,'2018 Gift List'!$A$3:$B$30,2,FALSE),\"\")","v":""}]
[null,null,null,null,null,null,null,null,null,null,{"$f":"IFERROR(VLOOKUP(J201,'2018 Gift List'!$A$3:$B$30,2,FALSE),\"\")","v":""}]
[null,null,null,null,null,null,null,null,null,null,{"$f":"IFERROR(VLOOKUP(J202,'2018 Gift List'!$A$3:$B$30,2,FALSE),\"\")","v":""}]
[null,null,null,null,null,null,null,null,null,null,{"$f":"IFERROR(VLOOKUP(J203,'2018 Gift List'!$A$3:$B$30,2,FALSE),\"\")","v":""}]
[null,null,null,null,null,null,null,null,null,null,{"$f":"IFERROR(VLOOKUP(J204,'2018 Gift List'!$A$3:$B$30,2,FALSE),\"\")","v":""}]
[null,null,null,null,null,null,null,null,null,null,{"$f":"IFERROR(VLOOKUP(J205,'2018 Gift List'!$A$3:$B$30,2,FALSE),\"\")","v":""}]
[null,null,null,null,null,null,null,null,null,null,{"$f":"IFERROR(VLOOKUP(J206,'2018 Gift List'!$A$3:$B$30,2,FALSE),\"\")","v":""}]
[null,null,null,null,null,null,null,null,null,null,{"$f":"IFERROR(VLOOKUP(J207,'2018 Gift List'!$A$3:$B$30,2,FALSE),\"\")","v":""}]
[null,null,null,null,null,null,null,null,null,null,{"$f":"IFERROR(VLOOKUP(J208,'2018 Gift List'!$A$3:$B$30,2,FALSE),\"\")","v":""}]
[null,null,null,null,null,null,null,null,null,null,{"$f":"IFERROR(VLOOKUP(J209,'2018 Gift List'!$A$3:$B$30,2,FALSE),\"\")","v":""}]
[null,null,null,null,null,null,null,null,null,null,{"$f":"IFERROR(VLOOKUP(J210,'2018 Gift List'!$A$3:$B$30,2,FALSE),\"\")","v":""}]
[null,null,null,null,null,null,null,null,null,null,{"$f":"IFERROR(VLOOKUP(J211,'2018 Gift List'!$A$3:$B$30,2,FALSE),\"\")","v":""}]
[null,null,null,null,null,null,null,null,null,null,{"$f":"IFERROR(VLOOKUP(J212,'2018 Gift List'!$A$3:$B$30,2,FALSE),\"\")","v":""}]
[null,null,null,null,null,null,null,null,null,null,{"$f":"IFERROR(VLOOKUP(J213,'2018 Gift List'!$A$3:$B$30,2,FALSE),\"\")","v":""}]
[null,null,null,null,null,null,null,null,null,null,{"$f":"IFERROR(VLOOKUP(J214,'2018 Gift List'!$A$3:$B$30,2,FALSE),\"\")","v":""}]
[null,null,null,null,null,null,null,null,null,null,{"$f":"IFERROR(VLOOKUP(J215,'2018 Gift List'!$A$3:$B$30,2,FALSE),\"\")","v":""}]
[null,null,null,null,null,null,null,null,null,null,{"$f":"IFERROR(VLOOKUP(J216,'2018 Gift List'!$A$3:$B$30,2,FALSE),\"\")","v":""}]
[null,null,null,null,null,null,null,null,null,null,{"$f":"IFERROR(VLOOKUP(J217,'2018 Gift List'!$A$3:$B$30,2,FALSE),\"\")","v":""}]
[null,null,null,null,null,null,null,null,null,null,{"$f":"IFERROR(VLOOKUP(J218,'2018 Gift List'!$A$3:$B$30,2,FALSE),\"\")","v":""}]
[null,null,null,null,null,null,null,null,null,null,{"$f":"IFERROR(VLOOKUP(J219,'2018 Gift List'!$A$3:$B$30,2,FALSE),\"\")","v":""}]
[null,null,null,null,null,null,null,null,null,null,{"$f":"IFERROR(VLOOKUP(J220,'2018 Gift List'!$A$3:$B$30,2,FALSE),\"\")","v":""}]
[null,null,null,null,null,null,null,null,null,null,{"$f":"IFERROR(VLOOKUP(J221,'2018 Gift List'!$A$3:$B$30,2,FALSE),\"\")","v":""}]
[null,null,null,null,null,null,null,null,null,null,{"$f":"IFERROR(VLOOKUP(J222,'2018 Gift List'!$A$3:$B$30,2,FALSE),\"\")","v":""}]
[null,null,null,null,null,null,null,null,null,null,{"$f":"IFERROR(VLOOKUP(J223,'2018 Gift List'!$A$3:$B$30,2,FALSE),\"\")","v":""}]
[null,null,null,null,null,null,null,null,null,null,{"$f":"IFERROR(VLOOKUP(J224,'2018 Gift List'!$A$3:$B$30,2,FALSE),\"\")","v":""}]
[null,null,null,null,null,null,null,null,null,null,{"$f":"IFERROR(VLOOKUP(J225,'2018 Gift List'!$A$3:$B$30,2,FALSE),\"\")","v":""}]
[null,null,null,null,null,null,null,null,null,null,{"$f":"IFERROR(VLOOKUP(J226,'2018 Gift List'!$A$3:$B$30,2,FALSE),\"\")","v":""}]
[null,null,null,null,null,null,null,null,null,null,{"$f":"IFERROR(VLOOKUP(J227,'2018 Gift List'!$A$3:$B$30,2,FALSE),\"\")","v":""}]
[null,null,null,null,null,null,null,null,null,null,{"$f":"IFERROR(VLOOKUP(J228,'2018 Gift List'!$A$3:$B$30,2,FALSE),\"\")","v":""}]
[null,null,null,null,null,null,null,null,null,null,{"$f":"IFERROR(VLOOKUP(J229,'2018 Gift List'!$A$3:$B$30,2,FALSE),\"\")","v":""}]
[null,null,null,null,null,null,null,null,null,null,{"$f":"IFERROR(VLOOKUP(J230,'2018 Gift List'!$A$3:$B$30,2,FALSE),\"\")","v":""}]
[null,null,null,null,null,null,null,null,null,null,{"$f":"IFERROR(VLOOKUP(J231,'2018 Gift List'!$A$3:$B$30,2,FALSE),\"\")","v":""}]
[null,null,null,null,null,null,null,null,null,null,{"$f":"IFERROR(VLOOKUP(J232,'2018 Gift List'!$A$3:$B$30,2,FALSE),\"\")","v":""}]
[null,null,null,null,null,null,null,null,null,null,{"$f":"IFERROR(VLOOKUP(J233,'2018 Gift List'!$A$3:$B$30,2,FALSE),\"\")","v":""}]
[null,null,null,null,null,null,null,null,null,null,{"$f":"IFERROR(VLOOKUP(J234,'2018 Gift List'!$A$3:$B$30,2,FALSE),\"\")","v":""}]
[null,null,null,null,null,null,null,null,null,null,{"$f":"IFERROR(VLOOKUP(J235,'2018 Gift List'!$A$3:$B$30,2,FALSE),\"\")","v":""}]
[null,null,null,null,null,null,null,null,null,null,{"$f":"IFERROR(VLOOKUP(J236,'2018 Gift List'!$A$3:$B$30,2,FALSE),\"\")","v":""}]
[null,null,null,null,null,null,null,null,null,null,{"$f":"IFERROR(VLOOKUP(J237,'2018 Gift List'!$A$3:$B$30,2,FALSE),\"\")","v":""}]
[null,null,null,null,null,null,null,null,null,null,{"$f":"IFERROR(VLOOKUP(J238,'2018 Gift List'!$A$3:$B$30,2,FALSE),\"\")","v":""}]
[null,null,null,null,null,null,null,null,null,null,{"$f":"IFERROR(VLOOKUP(J239,'2018 Gift List'!$A$3:$B$30,2,FALSE),\"\")","v":""}]
[null,null,null,null,null,null,null,null,null,null,{"$f":"IFERROR(VLOOKUP(J240,'2018 Gift List'!$A$3:$B$30,2,FALSE),\"\")","v":""}]
[null,null,null,null,null,null,null,null,null,null,{"$f":"IFERROR(VLOOKUP(J241,'2018 Gift List'!$A$3:$B$30,2,FALSE),\"\")","v":""}]
[null,null,null,null,null,null,null,null,null,null,{"$f":"IFERROR(VLOOKUP(J242,'2018 Gift List'!$A$3:$B$30,2,FALSE),\"\")","v":""}]
[null,null,null,null,null,null,null,null,null,null,{"$f":"IFERROR(VLOOKUP(J243,'2018 Gift List'!$A$3:$B$30,2,FALSE),\"\")","v":""}]
[null,null,null,null,null,null,null,null,null,null,{"$f":"IFERROR(VLOOKUP(J244,'2018 Gift List'!$A$3:$B$30,2,FALSE),\"\")","v":""}]
[null,null,null,null,null,null,null,null,null,null,{"$f":"IFERROR(VLOOKUP(J245,'2018 Gift List'!$A$3:$B$30,2,FALSE),\"\")","v":""}]
[null,null,null,null,null,null,null,null,null,null,{"$f":"IFERROR(VLOOKUP(J246,'2018 Gift List'!$A$3:$B$30,2,FALSE),\"\")","v":""}]
[null,null,null,null,null,null,null,null,null,null,{"$f":"IFERROR(VLOOKUP(J247,'2018 Gift List'!$A$3:$B$30,2,FALSE),\"\")","v":""}]
[null,null,null,null,null,null,null,null,null,null,{"$f":"IFERROR(VLOOKUP(J248,'2018 Gift List'!$A$3:$B$30,2,FALSE),\"\")","v":""}]
[null,null,null,null,null,null,null,null,null,null,{"$f":"IFERROR(VLOOKUP(J249,'2018 Gift List'!$A$3:$B$30,2,FALSE),\"\")","v":""}]
[null,null,null,null,null,null,null,null,null,null,{"$f":"IFERROR(VLOOKUP(J250,'2018 Gift List'!$A$3:$B$30,2,FALSE),\"\")","v":""}]
[null,null,null,null,null,null,null,null,null,null,{"$f":"IFERROR(VLOOKUP(J251,'2018 Gift List'!$A$3:$B$30,2,FALSE),\"\")","v":""}]
[null,null,null,null,null,null,null,null,null,null,{"$f":"IFERROR(VLOOKUP(J252,'2018 Gift List'!$A$3:$B$30,2,FALSE),\"\")","v":""}]
[null,null,null,null,null,null,null,null,null,null,{"$f":"IFERROR(VLOOKUP(J253,'2018 Gift List'!$A$3:$B$30,2,FALSE),\"\")","v":""}]
[null,null,null,null,null,null,null,null,null,null,{"$f":"IFERROR(VLOOKUP(J254,'2018 Gift List'!$A$3:$B$30,2,FALSE),\"\")","v":""}]
[null,null,null,null,null,null,null,null,null,null,{"$f":"IFERROR(VLOOKUP(J255,'2018 Gift List'!$A$3:$B$30,2,FALSE),\"\")","v":""}]
[null,null,null,null,null,null,null,null,null,null,{"$f":"IFERROR(VLOOKUP(J256,'2018 Gift List'!$A$3:$B$30,2,FALSE),\"\")","v":""}]
[null,null,null,null,null,null,null,null,null,null,{"$f":"IFERROR(VLOOKUP(J257,'2018 Gift List'!$A$3:$B$30,2,FALSE),\"\")","v":""}]
[null,null,null,null,null,null,null,null,null,null,{"$f":"IFERROR(VLOOKUP(J258,'2018 Gift List'!$A$3:$B$30,2,FALSE),\"\")","v":""}]
[null,null,null,null,null,null,null,null,null,null,{"$f":"IFERROR(VLOOKUP(J259,'2018 Gift List'!$A$3:$B$30,2,FALSE),\"\")","v":""}]
[null,null,null,null,null,null,null,null,null,null,{"$f":"IFERROR(VLOOKUP(J260,'2018 Gift List'!$A$3:$B$30,2,FALSE),\"\")","v":""}]
[null,null,null,null,null,null,null,null,null,null,{"$f":"IFERROR(VLOOKUP(J261,'2018 Gift List'!$A$3:$B$30,2,FALSE),\"\")","v":""}]
[null,null,null,null,null,null,null,null,null,null,{"$f":"IFERROR(VLOOKUP(J262,'2018 Gift List'!$A$3:$B$30,2,FALSE),\"\")","v":""}]
[null,null,null,null,null,null,null,null,null,null,{"$f":"IFERROR(VLOOKUP(J263,'2018 Gift List'!$A$3:$B$30,2,FALSE),\"\")","v":""}]
[null,null,null,null,null,null,null,null,null,null,{"$f":"IFERROR(VLOOKUP(J264,'2018 Gift List'!$A$3:$B$30,2,FALSE),\"\")","v":""}]
[null,null,null,null,null,null,null,null,null,null,{"$f":"IFERROR(VLOOKUP(J265,'2018 Gift List'!$A$3:$B$30,2,FALSE),\"\")","v":""}]
[null,null,null,null,null,null,null,null,null,null,{"$f":"IFERROR(VLOOKUP(J266,'2018 Gift List'!$A$3:$B$30,2,FALSE),\"\")","v":""}]
[null,null,null,null,null,null,null,null,null,null,{"$f":"IFERROR(VLOOKUP(J267,'2018 Gift List'!$A$3:$B$30,2,FALSE),\"\")","v":""}]
[null,null,null,null,null,null,null,null,null,null,{"$f":"IFERROR(VLOOKUP(J268,'2018 Gift List'!$A$3:$B$30,2,FALSE),\"\")","v":""}]
[null,null,null,null,null,null,null,null,null,null,{"$f":"IFERROR(VLOOKUP(J269,'2018 Gift List'!$A$3:$B$30,2,FALSE),\"\")","v":""}]
[null,null,null,null,null,null,null,null,null,null,{"$f":"IFERROR(VLOOKUP(J270,'2018 Gift List'!$A$3:$B$30,2,FALSE),\"\")","v":""}]
[null,null,null,null,null,null,null,null,null,null,{"$f":"IFERROR(VLOOKUP(J271,'2018 Gift List'!$A$3:$B$30,2,FALSE),\"\")","v":""}]
[null,null,null,null,null,null,null,null,null,null,{"$f":"IFERROR(VLOOKUP(J272,'2018 Gift List'!$A$3:$B$30,2,FALSE),\"\")","v":""}]
[null,null,null,null,null,null,null,null,null,null,{"$f":"IFERROR(VLOOKUP(J273,'2018 Gift List'!$A$3:$B$30,2,FALSE),\"\")","v":""}]
[null,null,null,null,null,null,null,null,null,null,{"$f":"IFERROR(VLOOKUP(J274,'2018 Gift List'!$A$3:$B$30,2,FALSE),\"\")","v":""}]
[null,null,null,null,null,null,null,null,null,null,{"$f":"IFERROR(VLOOKUP(J275,'2018 Gift List'!$A$3:$B$30,2,FALSE),\"\")","v":""}]
[null,null,null,null,null,null,null,null,null,null,{"$f":"IFERROR(VLOOKUP(J276,'2018 Gift List'!$A$3:$B$30,2,FALSE),\"\")","v":""}]
[null,null,null,null,null,null,null,null,null,null,{"$f":"IFERROR(VLOOKUP(J277,'2018 Gift List'!$A$3:$B$30,2,FALSE),\"\")","v":""}]
[null,null,null,null,null,null,null,null,null,null,{"$f":"IFERROR(VLOOKUP(J278,'2018 Gift List'!$A$3:$B$30,2,FALSE),\"\")","v":""}]
[null,null,null,null,null,null,null,null,null,null,{"$f":"IFERROR(VLOOKUP(J279,'2018 Gift List'!$A$3:$B$30,2,FALSE),\"\")","v":""}]
[null,null,null,null,null,null,null,null,null,null,{"$f":"IFERROR(VLOOKUP(J280,'2018 Gift List'!$A$3:$B$30,2,FALSE),\"\")","v":""}]
[null,null,null,null,null,null,null,null,null,null,{"$f":"IFERROR(VLOOKUP(J281,'2018 Gift List'!$A$3:$B$30,2,FALSE),\"\")","v":""}]
[null,null,null,null,null,null,null,null,null,null,{"$f":"IFERROR(VLOOKUP(J282,'2018 Gift List'!$A$3:$B$30,2,FALSE),\"\")","v":""}]
[null,null,null,null,null,null,null,null,null,null,{"$f":"IFERROR(VLOOKUP(J283,'2018 Gift List'!$A$3:$B$30,2,FALSE),\"\")","v":""}]
[null,null,null,null,null,null,null,null,null,null,{"$f":"IFERROR(VLOOKUP(J284,'2018 Gift List'!$A$3:$B$30,2,FALSE),\"\")","v":""}]
[null,null,null,null,null,null,null,null,null,null,{"$f":"IFERROR(VLOOKUP(J285,'2018 Gift List'!$A$3:$B$30,2,FALSE),\"\")","v":""}]
[null,null,null,null,null,null,null,null,null,null,{"$f":"IFERROR(VLOOKUP(J286,'2018 Gift List'!$A$3:$B$30,2,FALSE),\"\")","v":""}]
[null,null,null,null,null,null,null,null,null,null,{"$f":"IFERROR(VLOOKUP(J287,'2018 Gift List'!$A$3:$B$30,2,FALSE),\"\")","v":""}]
[null,null,null,null,null,null,null,null,null,null,{"$f":"IFERROR(VLOOKUP(J288,'2018 Gift List'!$A$3:$B$30,2,FALSE),\"\")","v":""}]
[null,null,null,null,null,null,null,null,null,null,{"$f":"IFERROR(VLOOKUP(J289,'2018 Gift List'!$A$3:$B$30,2,FALSE),\"\")","v":""}]
[null,null,null,null,null,null,null,null,null,null,{"$f":"IFERROR(VLOOKUP(J290,'2018 Gift List'!$A$3:$B$30,2,FALSE),\"\")","v":""}]
[null,null,null,null,null,null,null,null,null,null,{"$f":"IFERROR(VLOOKUP(J291,'2018 Gift List'!$A$3:$B$30,2,FALSE),\"\")","v":""}]
[null,null,null,null,null,null,null,null,null,null,{"$f":"IFERROR(VLOOKUP(J292,'2018 Gift List'!$A$3:$B$30,2,FALSE),\"\")","v":""}]
[null,null,null,null,null,null,null,null,null,null,{"$f":"IFERROR(VLOOKUP(J293,'2018 Gift List'!$A$3:$B$30,2,FALSE),\"\")","v":""}]
[null,null,null,null,null,null,null,null,null,null,{"$f":"IFERROR(VLOOKUP(J294,'2018 Gift List'!$A$3:$B$30,2,FALSE),\"\")","v":""}]
[null,null,null,null,null,null,null,null,null,null,{"$f":"IFERROR(VLOOKUP(J295,'2018 Gift List'!$A$3:$B$30,2,FALSE),\"\")","v":""}]
[null,null,null,null,null,null,null,null,null,null,{"$f":"IFERROR(VLOOKUP(J296,'2018 Gift List'!$A$3:$B$30,2,FALSE),\"\")","v":""}]
[null,null,null,null,null,null,null,null,null,null,{"$f":"IFERROR(VLOOKUP(J297,'2018 Gift List'!$A$3:$B$30,2,FALSE),\"\")","v":""}]
[null,null,null,null,null,null,null,null,null,null,{"$f":"IFERROR(VLOOKUP(J298,'2018 Gift List'!$A$3:$B$30,2,FALSE),\"\")","v":""}]
[null,null,null,null,null,null,null,null,null,null,{"$f":"IFERROR(VLOOKUP(J299,'2018 Gift List'!$A$3:$B$30,2,FALSE),\"\")","v":""}]
[null,null,null,null,null,null,null,null,null,null,{"$f":"IFERROR(VLOOKUP(J300,'2018 Gift List'!$A$3:$B$30,2,FALSE),\"\")","v":""}]
[null,null,null,null,null,null,null,null,null,null,{"$f":"IFERROR(VLOOKUP(J301,'2018 Gift List'!$A$3:$B$30,2,FALSE),\"\")","v":""}]
[null,null,null,null,null,null,null,null,null,null,{"$f":"IFERROR(VLOOKUP(J302,'2018 Gift List'!$A$3:$B$30,2,FALSE),\"\")","v":""}]
[null,null,null,null,null,null,null,null,null,null,{"$f":"IFERROR(VLOOKUP(J303,'2018 Gift List'!$A$3:$B$30,2,FALSE),\"\")","v":""}]
[null,null,null,null,null,null,null,null,null,null,{"$f":"IFERROR(VLOOKUP(J304,'2018 Gift List'!$A$3:$B$30,2,FALSE),\"\")","v":""}]
[null,null,null,null,null,null,null,null,null,null,{"$f":"IFERROR(VLOOKUP(J305,'2018 Gift List'!$A$3:$B$30,2,FALSE),\"\")","v":""}]
[null,null,null,null,null,null,null,null,null,null,{"$f":"IFERROR(VLOOKUP(J306,'2018 Gift List'!$A$3:$B$30,2,FALSE),\"\")","v":""}]
[null,null,null,null,null,null,null,null,null,null,{"$f":"IFERROR(VLOOKUP(J307,'2018 Gift List'!$A$3:$B$30,2,FALSE),\"\")","v":""}]
[null,null,null,null,null,null,null,null,null,null,{"$f":"IFERROR(VLOOKUP(J308,'2018 Gift List'!$A$3:$B$30,2,FALSE),\"\")","v":""}]
[null,null,null,null,null,null,null,null,null,null,{"$f":"IFERROR(VLOOKUP(J309,'2018 Gift List'!$A$3:$B$30,2,FALSE),\"\")","v":""}]
[null,null,null,null,null,null,null,null,null,null,{"$f":"IFERROR(VLOOKUP(J310,'2018 Gift List'!$A$3:$B$30,2,FALSE),\"\")","v":""}]
[null,null,null,null,null,null,null,null,null,null,{"$f":"IFERROR(VLOOKUP(J311,'2018 Gift List'!$A$3:$B$30,2,FALSE),\"\")","v":""}]
[null,null,null,null,null,null,null,null,null,null,{"$f":"IFERROR(VLOOKUP(J312,'2018 Gift List'!$A$3:$B$30,2,FALSE),\"\")","v":""}]
[null,null,null,null,null,null,null,null,null,null,{"$f":"IFERROR(VLOOKUP(J313,'2018 Gift List'!$A$3:$B$30,2,FALSE),\"\")","v":""}]
[null,null,null,null,null,null,null,null,null,null,{"$f":"IFERROR(VLOOKUP(J314,'2018 Gift List'!$A$3:$B$30,2,FALSE),\"\")","v":""}]
[null,null,null,null,null,null,null,null,null,null,{"$f":"IFERROR(VLOOKUP(J315,'2018 Gift List'!$A$3:$B$30,2,FALSE),\"\")","v":""}]
[null,null,null,null,null,null,null,null,null,null,{"$f":"IFERROR(VLOOKUP(J316,'2018 Gift List'!$A$3:$B$30,2,FALSE),\"\")","v":""}]
[null,null,null,null,null,null,null,null,null,null,{"$f":"IFERROR(VLOOKUP(J317,'2018 Gift List'!$A$3:$B$30,2,FALSE),\"\")","v":""}]
[null,null,null,null,null,null,null,null,null,null,{"$f":"IFERROR(VLOOKUP(J318,'2018 Gift List'!$A$3:$B$30,2,FALSE),\"\")","v":""}]
[null,null,null,null,null,null,null,null,null,null,{"$f":"IFERROR(VLOOKUP(J319,'2018 Gift List'!$A$3:$B$30,2,FALSE),\"\")","v":""}]
[null,null,null,null,null,null,null,null,null,null,{"$f":"IFERROR(VLOOKUP(J320,'2018 Gift List'!$A$3:$B$30,2,FALSE),\"\")","v":""}]
[null,null,null,null,null,null,null,null,null,null,{"$f":"IFERROR(VLOOKUP(J321,'2018 Gift List'!$A$3:$B$30,2,FALSE),\"\")","v":""}]
[null,null,null,null,null,null,null,null,null,null,{"$f":"IFERROR(VLOOKUP(J322,'2018 Gift List'!$A$3:$B$30,2,FALSE),\"\")","v":""}]
[null,null,null,null,null,null,null,null,null,null,{"$f":"IFERROR(VLOOKUP(J323,'2018 Gift List'!$A$3:$B$30,2,FALSE),\"\")","v":""}]
[null,null,null,null,null,null,null,null,null,null,{"$f":"IFERROR(VLOOKUP(J324,'2018 Gift List'!$A$3:$B$20,2,FALSE),\"\")","v":""}]
[null,null,null,null,null,null,null,null,null,null,{"$f":"IFERROR(VLOOKUP(J325,'2018 Gift List'!$A$3:$B$20,2,FALSE),\"\")","v":""}]
[null,null,null,null,null,null,null,null,null,null,{"$f":"IFERROR(VLOOKUP(J326,'2018 Gift List'!$A$3:$B$20,2,FALSE),\"\")","v":""}]
[null,null,null,null,null,null,null,null,null,null,{"$f":"IFERROR(VLOOKUP(J327,'2018 Gift List'!$A$3:$B$20,2,FALSE),\"\")","v":""}]
[null,null,null,null,null,null,null,null,null,null,{"$f":"IFERROR(VLOOKUP(J328,'2018 Gift List'!$A$3:$B$20,2,FALSE),\"\")","v":""}]
[null,null,null,null,null,null,null,null,null,null,{"$f":"IFERROR(VLOOKUP(J329,'2018 Gift List'!$A$3:$B$20,2,FALSE),\"\")","v":""}]
[null,null,null,null,null,null,null,null,null,null,{"$f":"IFERROR(VLOOKUP(J330,'2018 Gift List'!$A$3:$B$20,2,FALSE),\"\")","v":""}]
[null,null,null,null,null,null,null,null,null,null,{"$f":"IFERROR(VLOOKUP(J331,'2018 Gift List'!$A$3:$B$20,2,FALSE),\"\")","v":""}]
[null,null,null,null,null,null,null,null,null,null,{"$f":"IFERROR(VLOOKUP(J332,'2018 Gift List'!$A$3:$B$20,2,FALSE),\"\")","v":""}]
[null,null,null,null,null,null,null,null,null,null,{"$f":"IFERROR(VLOOKUP(J333,'2018 Gift List'!$A$3:$B$20,2,FALSE),\"\")","v":""}]
[null,null,null,null,null,null,null,null,null,null,{"$f":"IFERROR(VLOOKUP(J334,'2018 Gift List'!$A$3:$B$20,2,FALSE),\"\")","v":""}]
[null,null,null,null,null,null,null,null,null,null,{"$f":"IFERROR(VLOOKUP(J335,'2018 Gift List'!$A$3:$B$20,2,FALSE),\"\")","v":""}]
[null,null,null,null,null,null,null,null,null,null,{"$f":"IFERROR(VLOOKUP(J336,'2018 Gift List'!$A$3:$B$20,2,FALSE),\"\")","v":""}]
[null,null,null,null,null,null,null,null,null,null,{"$f":"IFERROR(VLOOKUP(J337,'2018 Gift List'!$A$3:$B$20,2,FALSE),\"\")","v":""}]
[null,null,null,null,null,null,null,null,null,null,{"$f":"IFERROR(VLOOKUP(J338,'2018 Gift List'!$A$3:$B$20,2,FALSE),\"\")","v":""}]
[null,null,null,null,null,null,null,null,null,null,{"$f":"IFERROR(VLOOKUP(J339,'2018 Gift List'!$A$3:$B$20,2,FALSE),\"\")","v":""}]
[null,null,null,null,null,null,null,null,null,null,{"$f":"IFERROR(VLOOKUP(J340,'2018 Gift List'!$A$3:$B$20,2,FALSE),\"\")","v":""}]
[null,null,null,null,null,null,null,null,null,null,{"$f":"IFERROR(VLOOKUP(J341,'2018 Gift List'!$A$3:$B$20,2,FALSE),\"\")","v":""}]
[null,null,null,null,null,null,null,null,null,null,{"$f":"IFERROR(VLOOKUP(J342,'2018 Gift List'!$A$3:$B$20,2,FALSE),\"\")","v":""}]
[null,null,null,null,null,null,null,null,null,null,{"$f":"IFERROR(VLOOKUP(J343,'2018 Gift List'!$A$3:$B$20,2,FALSE),\"\")","v":""}]
[null,null,null,null,null,null,null,null,null,null,{"$f":"IFERROR(VLOOKUP(J344,'2018 Gift List'!$A$3:$B$20,2,FALSE),\"\")","v":""}]
[null,null,null,null,null,null,null,null,null,null,{"$f":"IFERROR(VLOOKUP(J345,'2018 Gift List'!$A$3:$B$20,2,FALSE),\"\")","v":""}]
[null,null,null,null,null,null,null,null,null,null,{"$f":"IFERROR(VLOOKUP(J346,'2018 Gift List'!$A$3:$B$20,2,FALSE),\"\")","v":""}]
[null,null,null,null,null,null,null,null,null,null,{"$f":"IFERROR(VLOOKUP(J347,'2018 Gift List'!$A$3:$B$20,2,FALSE),\"\")","v":""}]
[null,null,null,null,null,null,null,null,null,null,{"$f":"IFERROR(VLOOKUP(J348,'2018 Gift List'!$A$3:$B$20,2,FALSE),\"\")","v":""}]
[null,null,null,null,null,null,null,null,null,null,{"$f":"IFERROR(VLOOKUP(J349,'2018 Gift List'!$A$3:$B$20,2,FALSE),\"\")","v":""}]
[null,null,null,null,null,null,null,null,null,null,{"$f":"IFERROR(VLOOKUP(J350,'2018 Gift List'!$A$3:$B$20,2,FALSE),\"\")","v":""}]
[null,null,null,null,null,null,null,null,null,null,{"$f":"IFERROR(VLOOKUP(J351,'2018 Gift List'!$A$3:$B$20,2,FALSE),\"\")","v":""}]
[null,null,null,null,null,null,null,null,null,null,{"$f":"IFERROR(VLOOKUP(J352,'2018 Gift List'!$A$3:$B$20,2,FALSE),\"\")","v":""}]
[null,null,null,null,null,null,null,null,null,null,{"$f":"IFERROR(VLOOKUP(J353,'2018 Gift List'!$A$3:$B$20,2,FALSE),\"\")","v":""}]
[null,null,null,null,null,null,null,null,null,null,{"$f":"IFERROR(VLOOKUP(J354,'2018 Gift List'!$A$3:$B$20,2,FALSE),\"\")","v":""}]
[null,null,null,null,null,null,null,null,null,null,{"$f":"IFERROR(VLOOKUP(J355,'2018 Gift List'!$A$3:$B$20,2,FALSE),\"\")","v":""}]
[null,null,null,null,null,null,null,null,null,null,{"$f":"IFERROR(VLOOKUP(J356,'2018 Gift List'!$A$3:$B$20,2,FALSE),\"\")","v":""}]
[null,null,null,null,null,null,null,null,null,null,{"$f":"IFERROR(VLOOKUP(J357,'2018 Gift List'!$A$3:$B$20,2,FALSE),\"\")","v":""}]
[null,null,null,null,null,null,null,null,null,null,{"$f":"IFERROR(VLOOKUP(J358,'2018 Gift List'!$A$3:$B$20,2,FALSE),\"\")","v":""}]
[null,null,null,null,null,null,null,null,null,null,{"$f":"IFERROR(VLOOKUP(J359,'2018 Gift List'!$A$3:$B$20,2,FALSE),\"\")","v":""}]
[null,null,null,null,null,null,null,null,null,null,{"$f":"IFERROR(VLOOKUP(J360,'2018 Gift List'!$A$3:$B$20,2,FALSE),\"\")","v":""}]
[null,null,null,null,null,null,null,null,null,null,{"$f":"IFERROR(VLOOKUP(J361,'2018 Gift List'!$A$3:$B$20,2,FALSE),\"\")","v":""}]
[null,null,null,null,null,null,null,null,null,null,{"$f":"IFERROR(VLOOKUP(J362,'2018 Gift List'!$A$3:$B$20,2,FALSE),\"\")","v":""}]
[null,null,null,null,null,null,null,null,null,null,{"$f":"IFERROR(VLOOKUP(J363,'2018 Gift List'!$A$3:$B$20,2,FALSE),\"\")","v":""}]
[null,null,null,null,null,null,null,null,null,null,{"$f":"IFERROR(VLOOKUP(J364,'2018 Gift List'!$A$3:$B$20,2,FALSE),\"\")","v":""}]
[null,null,null,null,null,null,null,null,null,null,{"$f":"IFERROR(VLOOKUP(J365,'2018 Gift List'!$A$3:$B$20,2,FALSE),\"\")","v":""}]
[null,null,null,null,null,null,null,null,null,null,{"$f":"IFERROR(VLOOKUP(J366,'2018 Gift List'!$A$3:$B$20,2,FALSE),\"\")","v":""}]
[null,null,null,null,null,null,null,null,null,null,{"$f":"IFERROR(VLOOKUP(J367,'2018 Gift List'!$A$3:$B$20,2,FALSE),\"\")","v":""}]
[null,null,null,null,null,null,null,null,null,null,{"$f":"IFERROR(VLOOKUP(J368,'2018 Gift List'!$A$3:$B$20,2,FALSE),\"\")","v":""}]
[null,null,null,null,null,null,null,null,null,null,{"$f":"IFERROR(VLOOKUP(J369,'2018 Gift List'!$A$3:$B$20,2,FALSE),\"\")","v":""}]
[null,null,null,null,null,null,null,null,null,null,{"$f":"IFERROR(VLOOKUP(J370,'2018 Gift List'!$A$3:$B$20,2,FALSE),\"\")","v":""}]
[null,null,null,null,null,null,null,null,null,null,{"$f":"IFERROR(VLOOKUP(J371,'2018 Gift List'!$A$3:$B$20,2,FALSE),\"\")","v":""}]
[null,null,null,null,null,null,null,null,null,null,{"$f":"IFERROR(VLOOKUP(J372,'2018 Gift List'!$A$3:$B$20,2,FALSE),\"\")","v":""}]
[null,null,null,null,null,null,null,null,null,null,{"$f":"IFERROR(VLOOKUP(J373,'2018 Gift List'!$A$3:$B$20,2,FALSE),\"\")","v":""}]
[null,null,null,null,null,null,null,null,null,null,{"$f":"IFERROR(VLOOKUP(J374,'2018 Gift List'!$A$3:$B$20,2,FALSE),\"\")","v":""}]
[null,null,null,null,null,null,null,null,null,null,{"$f":"IFERROR(VLOOKUP(J375,'2018 Gift List'!$A$3:$B$20,2,FALSE),\"\")","v":""}]
[null,null,null,null,null,null,null,null,null,null,{"$f":"IFERROR(VLOOKUP(J376,'2018 Gift List'!$A$3:$B$20,2,FALSE),\"\")","v":""}]
[null,null,null,null,null,null,null,null,null,null,{"$f":"IFERROR(VLOOKUP(J377,'2018 Gift List'!$A$3:$B$20,2,FALSE),\"\")","v":""}]
[null,null,null,null,null,null,null,null,null,null,{"$f":"IFERROR(VLOOKUP(J378,'2018 Gift List'!$A$3:$B$20,2,FALSE),\"\")","v":""}]
[null,null,null,null,null,null,null,null,null,null,{"$f":"IFERROR(VLOOKUP(J379,'2018 Gift List'!$A$3:$B$20,2,FALSE),\"\")","v":""}]
[null,null,null,null,null,null,null,null,null,null,{"$f":"IFERROR(VLOOKUP(J380,'2018 Gift List'!$A$3:$B$20,2,FALSE),\"\")","v":""}]
[null,null,null,null,null,null,null,null,null,null,{"$f":"IFERROR(VLOOKUP(J381,'2018 Gift List'!$A$3:$B$20,2,FALSE),\"\")","v":""}]
[null,null,null,null,null,null,null,null,null,null,{"$f":"IFERROR(VLOOKUP(J382,'2018 Gift List'!$A$3:$B$20,2,FALSE),\"\")","v":""}]
[null,null,null,null,null,null,null,null,null,null,{"$f":"IFERROR(VLOOKUP(J383,'2018 Gift List'!$A$3:$B$20,2,FALSE),\"\")","v":""}]
[null,null,null,null,null,null,null,null,null,null,{"$f":"IFERROR(VLOOKUP(J384,'2018 Gift List'!$A$3:$B$20,2,FALSE),\"\")","v":""}]
[null,null,null,null,null,null,null,null,null,null,{"$f":"IFERROR(VLOOKUP(J385,'2018 Gift List'!$A$3:$B$20,2,FALSE),\"\")","v":""}]
[null,null,null,null,null,null,null,null,null,null,{"$f":"IFERROR(VLOOKUP(J386,'2018 Gift List'!$A$3:$B$20,2,FALSE),\"\")","v":""}]
[null,null,null,null,null,null,null,null,null,null,{"$f":"IFERROR(VLOOKUP(J387,'2018 Gift List'!$A$3:$B$20,2,FALSE),\"\")","v":""}]
[null,null,null,null,null,null,null,null,null,null,{"$f":"IFERROR(VLOOKUP(J388,'2018 Gift List'!$A$3:$B$20,2,FALSE),\"\")","v":""}]
[null,null,null,null,null,null,null,null,null,null,{"$f":"IFERROR(VLOOKUP(J389,'2018 Gift List'!$A$3:$B$20,2,FALSE),\"\")","v":""}]
[null,null,null,null,null,null,null,null,null,null,{"$f":"IFERROR(VLOOKUP(J390,'2018 Gift List'!$A$3:$B$20,2,FALSE),\"\")","v":""}]
[null,null,null,null,null,null,null,null,null,null,{"$f":"IFERROR(VLOOKUP(J391,'2018 Gift List'!$A$3:$B$20,2,FALSE),\"\")","v":""}]
[null,null,null,null,null,null,null,null,null,null,{"$f":"IFERROR(VLOOKUP(J392,'2018 Gift List'!$A$3:$B$20,2,FALSE),\"\")","v":""}]
[null,null,null,null,null,null,null,null,null,null,{"$f":"IFERROR(VLOOKUP(J393,'2018 Gift List'!$A$3:$B$20,2,FALSE),\"\")","v":""}]
[null,null,null,null,null,null,null,null,null,null,{"$f":"IFERROR(VLOOKUP(J394,'2018 Gift List'!$A$3:$B$20,2,FALSE),\"\")","v":""}]
[null,null,null,null,null,null,null,null,null,null,{"$f":"IFERROR(VLOOKUP(J395,'2018 Gift List'!$A$3:$B$20,2,FALSE),\"\")","v":""}]
[null,null,null,null,null,null,null,null,null,null,{"$f":"IFERROR(VLOOKUP(J396,'2018 Gift List'!$A$3:$B$20,2,FALSE),\"\")","v":""}]
[null,null,null,null,null,null,null,null,null,null,{"$f":"IFERROR(VLOOKUP(J397,'2018 Gift List'!$A$3:$B$20,2,FALSE),\"\")","v":""}]
[null,null,null,null,null,null,null,null,null,null,{"$f":"IFERROR(VLOOKUP(J398,'2018 Gift List'!$A$3:$B$20,2,FALSE),\"\")","v":""}]
[null,null,null,null,null,null,null,null,null,null,{"$f":"IFERROR(VLOOKUP(J399,'2018 Gift List'!$A$3:$B$20,2,FALSE),\"\")","v":""}]
[null,null,null,null,null,null,null,null,null,null,{"$f":"IFERROR(VLOOKUP(J400,'2018 Gift List'!$A$3:$B$20,2,FALSE),\"\")","v":""}]
[null,null,null,null,null,null,null,null,null,null,{"$f":"IFERROR(VLOOKUP(J401,'2018 Gift List'!$A$3:$B$20,2,FALSE),\"\")","v":""}]
[null,null,null,null,null,null,null,null,null,null,{"$f":"IFERROR(VLOOKUP(J402,'2018 Gift List'!$A$3:$B$20,2,FALSE),\"\")","v":""}]
[null,null,null,null,null,null,null,null,null,null,{"$f":"IFERROR(VLOOKUP(J403,'2018 Gift List'!$A$3:$B$20,2,FALSE),\"\")","v":""}]
[null,null,null,null,null,null,null,null,null,null,{"$f":"IFERROR(VLOOKUP(J404,'2018 Gift List'!$A$3:$B$20,2,FALSE),\"\")","v":""}]
[null,null,null,null,null,null,null,null,null,null,{"$f":"IFERROR(VLOOKUP(J405,'2018 Gift List'!$A$3:$B$20,2,FALSE),\"\")","v":""}]
[null,null,null,null,null,null,null,null,null,null,{"$f":"IFERROR(VLOOKUP(J406,'2018 Gift List'!$A$3:$B$20,2,FALSE),\"\")","v":""}]
[null,null,null,null,null,null,null,null,null,null,{"$f":"IFERROR(VLOOKUP(J407,'2018 Gift List'!$A$3:$B$20,2,FALSE),\"\")","v":""}]
[null,null,null,null,null,null,null,null,null,null,{"$f":"IFERROR(VLOOKUP(J408,'2018 Gift List'!$A$3:$B$20,2,FALSE),\"\")","v":""}]
[null,null,null,null,null,null,null,null,null,null,{"$f":"IFERROR(VLOOKUP(J409,'2018 Gift List'!$A$3:$B$20,2,FALSE),\"\")","v":""}]
[null,null,null,null,null,null,null,null,null,null,{"$f":"IFERROR(VLOOKUP(J410,'2018 Gift List'!$A$3:$B$20,2,FALSE),\"\")","v":""}]
[null,null,null,null,null,null,null,null,null,null,{"$f":"IFERROR(VLOOKUP(J411,'2018 Gift List'!$A$3:$B$20,2,FALSE),\"\")","v":""}]
[null,null,null,null,null,null,null,null,null,null,{"$f":"IFERROR(VLOOKUP(J412,'2018 Gift List'!$A$3:$B$20,2,FALSE),\"\")","v":""}]
[null,null,null,null,null,null,null,null,null,null,{"$f":"IFERROR(VLOOKUP(J413,'2018 Gift List'!$A$3:$B$20,2,FALSE),\"\")","v":""}]
[null,null,null,null,null,null,null,null,null,null,{"$f":"IFERROR(VLOOKUP(J414,'2018 Gift List'!$A$3:$B$20,2,FALSE),\"\")","v":""}]
[null,null,null,null,null,null,null,null,null,null,{"$f":"IFERROR(VLOOKUP(J415,'2018 Gift List'!$A$3:$B$20,2,FALSE),\"\")","v":""}]
[null,null,null,null,null,null,null,null,null,null,{"$f":"IFERROR(VLOOKUP(J416,'2018 Gift List'!$A$3:$B$20,2,FALSE),\"\")","v":""}]
[null,null,null,null,null,null,null,null,null,null,{"$f":"IFERROR(VLOOKUP(J417,'2018 Gift List'!$A$3:$B$20,2,FALSE),\"\")","v":""}]
[null,null,null,null,null,null,null,null,null,null,{"$f":"IFERROR(VLOOKUP(J418,'2018 Gift List'!$A$3:$B$20,2,FALSE),\"\")","v":""}]
[null,null,null,null,null,null,null,null,null,null,{"$f":"IFERROR(VLOOKUP(J419,'2018 Gift List'!$A$3:$B$20,2,FALSE),\"\")","v":""}]
[null,null,null,null,null,null,null,null,null,null,{"$f":"IFERROR(VLOOKUP(J420,'2018 Gift List'!$A$3:$B$20,2,FALSE),\"\")","v":""}]
[null,null,null,null,null,null,null,null,null,null,{"$f":"IFERROR(VLOOKUP(J421,'2018 Gift List'!$A$3:$B$20,2,FALSE),\"\")","v":""}]
[null,null,null,null,null,null,null,null,null,null,{"$f":"IFERROR(VLOOKUP(J422,'2018 Gift List'!$A$3:$B$20,2,FALSE),\"\")","v":""}]
[null,null,null,null,null,null,null,null,null,null,{"$f":"IFERROR(VLOOKUP(J423,'2018 Gift List'!$A$3:$B$20,2,FALSE),\"\")","v":""}]
[null,null,null,null,null,null,null,null,null,null,{"$f":"IFERROR(VLOOKUP(J424,'2018 Gift List'!$A$3:$B$20,2,FALSE),\"\")","v":""}]
[null,null,null,null,null,null,null,null,null,null,{"$f":"IFERROR(VLOOKUP(J425,'2018 Gift List'!$A$3:$B$20,2,FALSE),\"\")","v":""}]
[null,null,null,null,null,null,null,null,null,null,{"$f":"IFERROR(VLOOKUP(J426,'2018 Gift List'!$A$3:$B$20,2,FALSE),\"\")","v":""}]
[null,null,null,null,null,null,null,null,null,null,{"$f":"IFERROR(VLOOKUP(J427,'2018 Gift List'!$A$3:$B$20,2,FALSE),\"\")","v":""}]
[null,null,null,null,null,null,null,null,null,null,{"$f":"IFERROR(VLOOKUP(J428,'2018 Gift List'!$A$3:$B$20,2,FALSE),\"\")","v":""}]
[null,null,null,null,null,null,null,null,null,null,{"$f":"IFERROR(VLOOKUP(J429,'2018 Gift List'!$A$3:$B$20,2,FALSE),\"\")","v":""}]
[null,null,null,null,null,null,null,null,null,null,{"$f":"IFERROR(VLOOKUP(J430,'2018 Gift List'!$A$3:$B$20,2,FALSE),\"\")","v":""}]
[null,null,null,null,null,null,null,null,null,null,{"$f":"IFERROR(VLOOKUP(J431,'2018 Gift List'!$A$3:$B$20,2,FALSE),\"\")","v":""}]
[null,null,null,null,null,null,null,null,null,null,{"$f":"IFERROR(VLOOKUP(J432,'2018 Gift List'!$A$3:$B$20,2,FALSE),\"\")","v":""}]
[null,null,null,null,null,null,null,null,null,null,{"$f":"IFERROR(VLOOKUP(J433,'2018 Gift List'!$A$3:$B$20,2,FALSE),\"\")","v":""}]
[null,null,null,null,null,null,null,null,null,null,{"$f":"IFERROR(VLOOKUP(J434,'2018 Gift List'!$A$3:$B$20,2,FALSE),\"\")","v":""}]
[null,null,null,null,null,null,null,null,null,null,{"$f":"IFERROR(VLOOKUP(J435,'2018 Gift List'!$A$3:$B$20,2,FALSE),\"\")","v":""}]
[null,null,null,null,null,null,null,null,null,null,{"$f":"IFERROR(VLOOKUP(J436,'2018 Gift List'!$A$3:$B$20,2,FALSE),\"\")","v":""}]
[null,null,null,null,null,null,null,null,null,null,{"$f":"IFERROR(VLOOKUP(J437,'2018 Gift List'!$A$3:$B$20,2,FALSE),\"\")","v":""}]
[null,null,null,null,null,null,null,null,null,null,{"$f":"IFERROR(VLOOKUP(J438,'2018 Gift List'!$A$3:$B$20,2,FALSE),\"\")","v":""}]
[null,null,null,null,null,null,null,null,null,null,{"$f":"IFERROR(VLOOKUP(J439,'2018 Gift List'!$A$3:$B$20,2,FALSE),\"\")","v":""}]
[null,null,null,null,null,null,null,null,null,null,{"$f":"IFERROR(VLOOKUP(J440,'2018 Gift List'!$A$3:$B$20,2,FALSE),\"\")","v":""}]
[null,null,null,null,null,null,null,null,null,null,{"$f":"IFERROR(VLOOKUP(J441,'2018 Gift List'!$A$3:$B$20,2,FALSE),\"\")","v":""}]
[null,null,null,null,null,null,null,null,null,null,{"$f":"IFERROR(VLOOKUP(J442,'2018 Gift List'!$A$3:$B$20,2,FALSE),\"\")","v":""}]
[null,null,null,null,null,null,null,null,null,null,{"$f":"IFERROR(VLOOKUP(J443,'2018 Gift List'!$A$3:$B$20,2,FALSE),\"\")","v":""}]
[null,null,null,null,null,null,null,null,null,null,{"$f":"IFERROR(VLOOKUP(J444,'2018 Gift List'!$A$3:$B$20,2,FALSE),\"\")","v":""}]
[null,null,null,null,null,null,null,null,null,null,{"$f":"IFERROR(VLOOKUP(J445,'2018 Gift List'!$A$3:$B$20,2,FALSE),\"\")","v":""}]
[null,null,null,null,null,null,null,null,null,null,{"$f":"IFERROR(VLOOKUP(J446,'2018 Gift List'!$A$3:$B$20,2,FALSE),\"\")","v":""}]
[null,null,null,null,null,null,null,null,null,null,{"$f":"IFERROR(VLOOKUP(J447,'2018 Gift List'!$A$3:$B$20,2,FALSE),\"\")","v":""}]
[null,null,null,null,null,null,null,null,null,null,{"$f":"IFERROR(VLOOKUP(J448,'2018 Gift List'!$A$3:$B$20,2,FALSE),\"\")","v":""}]
[null,null,null,null,null,null,null,null,null,null,{"$f":"IFERROR(VLOOKUP(J449,'2018 Gift List'!$A$3:$B$20,2,FALSE),\"\")","v":""}]
[null,null,null,null,null,null,null,null,null,null,{"$f":"IFERROR(VLOOKUP(J450,'2018 Gift List'!$A$3:$B$20,2,FALSE),\"\")","v":""}]
[null,null,null,null,null,null,null,null,null,null,{"$f":"IFERROR(VLOOKUP(J451,'2018 Gift List'!$A$3:$B$20,2,FALSE),\"\")","v":""}]
[null,null,null,null,null,null,null,null,null,null,{"$f":"IFERROR(VLOOKUP(J452,'2018 Gift List'!$A$3:$B$20,2,FALSE),\"\")","v":""}]

{"sheet":"Gift Messages","index":1,"n_rows":50,"n_cols":1,"rows_kept":50,"cut":false,"hidden":false,"merged":[]}
["Gift Messages "]
["Thinking of you!"]
["Hope all is well!"]
["Happy Birthday!"]
["You are aging like a fine wine…and cheese! Happy Birthday :)"]
["Best wishes on your birthday and throughout the coming year."]
["May this be just the beginning of a year filled with wonderful days."]
["Happy Anniversary!"]
["Congratulations!"]
["Congratulations Newlyweds!"]
["Congratulations on your engagement!"]
["Congratulations Homeowner!"]
["Congratulations on your new home!"]
["May your new home be filled with lots of love and laughter."]
["Congratulations Graduate!"]
["Congratulations on your new bundle of joy!"]
["Congratulations on your retirement!"]
["Congratulations on your new job!"]
["Happy house warming!"]
["Best wishes!"]
["Thank you!"]
["Thank you for all you do."]
["With gratitude and best wishes!"]
["Wishing you every happiness!"]
["Wishing you all the best!"]
["Here's to a speedy recovery!"]
["All the best for a speedy recovery."]
["Get well soon."]
["In loving memory."]
["With deepest sympathy."]
["With heartfelt condolences."]
["Sending you love and sympathy, today and always."]
["Our heartfelt sympathies at this most difficult time."]
["All our love."]
["All my love."]
["Happy Valentine's Day!"]
["Happy Easter!"]
["Happy Mother's Day!"]
["Happy Father's Day!"]
["Happy Fourth of July!"]
["Happy Thanksgiving!"]
["Happy Holidays!"]
["Wishing you health and happiness this holiday season."]
["Season's greetings! May you have a peaceful holiday and New Year."]
["Merry Christmas!"]
["Happy Hannukah!"]
["Happy New Year!"]
["[No message - please leave blank]"]
["[CUSTOM: Please contact one of our Gifting Specialists for more details]"]
["[HANDWRITTEN: Please contact one of our Gifting Specialists for more details]"]

{"sheet":"2018 Gift List","index":2,"n_rows":31,"n_cols":2,"rows_kept":31,"cut":false,"hidden":false,"merged":[[0,0,0,1]]}
["2018 Gift List"]
[]
["4 Cheese Sampler - BASK976",39.99]
["Taste of Di Bruno - BASK084",49.99]
["Prov Pepp Box - BASK977\n",59.99]
["Sweet & Salty Bundle - BUND12\n",64.989999999999995]
["Pasta Bundle - BUND02\n",69.989999999999995]
["Pasta and Sauce Crate -BASK069",80]
["Italian Market Tote - BUND20",129.99]
["World Traveler Tote - BUND21",199.99]
["Abbondanza - BASK003\n",79.989999999999995]
["Oil Vinegar - BASK923\n",79.989999999999995]
["Perfect Pairings - BASK035\n",99.99]
["Italian Mkt Crate - BASK090\n",129.99]
["Favoloso - BASK074",149.99]
["World Traveler - BASK092\n",199.99]
["Cucina - BASK978\n",224.99]
["Extravaganza - BASK002\n",299.99]
["The Best of the Best - BASK058\n",299.99]
["The Glorioso - BASK095",399.99]
["Cheddar Bundle - BUND06",79.989999999999995]
["Prima Donna Bundle - BUND14",79.989999999999995]
["Bacon Lover's Bundle -BUND13",84.99]
["Parm Party Bundle - BUND04",84.99]
["Legendairy Cheese Plate  - BASK019",99.99]
["Beer & Bourbon Collection - BASK059",99.99]
["Wine Lover's Collection - BASK067",99.99]
["Italian Cheese Collection - BASK014",99.99]
["Cheesemonger Picks - BASK049",99.99]
["Italian Hoagie Kit - BASK068",124.99]
["CUSTOM: Please contact one of our Gifting Specialists for more details"]

{"sheet":"CoGi Offering_2016","index":3,"n_rows":24,"n_cols":7,"rows_kept":24,"cut":false,"hidden":true,"merged":[]}
["Item Code","Basket Name","Retail ","CoGi Offer","Build Date","Orig. Project.","Cogi Add + Ecomm"]
[]
["BASK018","French ",89.99,"Available for pre-order by Nov. 11th ","2016-10-04",135,137]
["BASK045","HOC Plate",79.989999999999995,"Available for pre-order by Nov. 11th ","2016-10-04",167,177]
["BASK014","Italian Coll",89.99,"Available for pre-order by Nov. 11th ","2016-09-30",195,197]
["BASK013","Red Wine Coll",99.99,"Available for pre-order by Nov. 11th ","2016-09-29",251,268]
["BASK913","White Wine Coll",99.99,"Available for pre-order by Nov. 11th ","2016-10-03",127,144]
["BASK004","Beer Lovers",99.99,"Available for pre-order by Nov. 11th ","2016-10-03",149,166]
["BASK976","3 Cheese",39.99,"FOCUS gift/avail for bulk orders","2016-09-28",573,623]
["BASK084","Taste of Di Bruno",49.99,"FOCUS gift/avail for bulk orders","2016-09-27",1597,1737]
["BASK977","Prov Pepp Box",64.989999999999995,"FOCUS gift/avail for bulk orders","2016-09-20",758,763]
["BASK003","Abbondanza",74.989999999999995,"FOCUS gift/avail for bulk orders","2016-09-26",3238,3504]
["BASK035","VIP Crate",99.99,"FOCUS gift/avail for bulk orders","2016-10-05",1673,1873]
["BASK074","Favoloso",149.99,"FOCUS gift/avail for bulk orders","2016-10-06",879,894]
["BASK978","Cucina",199.99,"FOCUS gift/avail for bulk orders","2016-10-07",392,427]
["BASK002","Extravaganza",299.99,"FOCUS gift/avail for bulk orders","2016-10-10",346,379]
["BASK923","Oil Vinegar",79.989999999999995,"Pantry/Cooking Gift","2016-09-14",144,145]
["BASK015","Pasta & Sauce",69.989999999999995,"Pantry/Cooking Gift","2016-09-15",190,196]
["BASK017","Snack Box",59.99,"Snacks & Sweets","2016-09-19",197,155]
["BASK987","Sweets Box",99.99,"Snacks & Sweets","2016-11-11",109,249]
["BASK093","Bestseller 150 ",149.99,"Specialty *limited time only!","2016-10-11",202,208]
["BASK094","Bestseller 250  ",249.99,"Specialty *limited time only!","2016-11-10",64,72]
["BASK090","Italian Mkt Crate ",124.99,"Specialty *limited time only!","2016-10-17",291,330]
["BASK095","Glorioso",399.99,"Specialty *limited time only!","2016-11-11",8,16]